bitfinex/quotes_SOLUSD_20250814
["timestamp","ask_amount","ask_price","bid_price","bid_amount"]
[1755210816627,0.06,191.8,191.78,0.67]
[1755210816806,0.06,191.8,191.77,0.67]
[1755210817426,0.06,191.8,191.76,14.13558865]
[1755210817608,0.06,191.8,191.76,14.80558865]
[1755210818613,0.06,191.8,191.77,0.67]
[1755210819434,0.06,191.8,191.78,0.67]
[1755210820204,0.06,191.8,191.76,14.13558865]
[1755210820405,0.06,191.8,191.76,14.80558865]
[1755210820605,0.06,191.8,191.76,14.13558865]
[1755210821020,0.06,191.8,191.77,0.67]
[1755210821253,0.06,191.8,191.78,0.67]
[1755210822728,0.06,191.8,191.79,5.88403618]
[1755210823834,0.06,191.8,191.79,5.21403618]
[1755210824214,0.06,191.8,191.78,5.21423034]
[1755210825214,0.06,191.8,191.78,5.88423034]
[1755210826229,0.06,191.8,191.78,5.21423034]
[1755210827030,0.06,191.8,191.78,5.88423034]
[1755210827639,0.06,191.8,191.79,0.67]
[1755210828610,0.06,191.8,191.78,5.21423034]
[1755210828817,0.06,191.8,191.78,0.67]
[1755210829538,6.47453565,191.79,191.74,5.88539584]
[1755210829720,0.69,191.79,191.74,10.99993149]
[1755210830038,5.84453565,191.8,191.75,0.67]
[1755210830227,0.69,191.79,191.75,0.67]
[1755210830426,0.75,191.8,191.75,5.78453565]
[1755210830617,0.75,191.8,191.76,5.8847701]
[1755210830817,0.06,191.8,191.77,0.67]
[1755210831924,0.06,191.8,191.76,10.99930575]
[1755210832133,0.06,191.8,191.78,0.67]
[1755210835650,0.06,191.8,191.76,10.99935276]
[1755210835856,0.75,191.8,191.76,10.99935276]
[1755210836225,0.75,191.8,191.76,11.66935276]
[1755210836924,0.75,191.8,191.76,0.67]
[1755210837244,6.47453565,191.79,191.74,5.78453565]
[1755210837440,6.47453565,191.79,191.74,6.45453565]
[1755210837644,6.47453565,191.79,191.75,0.67]
[1755210837842,0.69,191.79,191.75,0.67]
[1755210838038,6.47453565,191.79,191.75,0.67]
[1755210838244,6.47453565,191.79,191.75,5.88494052]
[1755210838837,0.69,191.79,191.75,5.88494052]
[1755210839055,0.06,191.8,191.76,0.67]
[1755210839658,0.06,191.8,191.76,5.78453565]
[1755210839868,0.06,191.8,191.77,0.67]
[1755210840149,0.75,191.8,191.76,6.45453565]
[1755210840352,0.69,191.79,191.75,10.99958333]
[1755210840550,0.69,191.78,191.75,10.99958333]
[1755210841253,41.10621557,191.72,191.71,0.03]
[1755210841555,88.93874948,191.72,191.71,0.03]
[1755210841853,41.35799826,191.72,191.71,0.03]
[1755210842054,47.14435596,191.72,191.71,0.03]
[1755210842244,9.28435596,191.72,191.71,0.03]
[1755210842556,37.86,191.72,191.71,0.03]
[1755210842734,37.86,191.72,191.71,0.69]
[1755210844343,37.86,191.72,191.71,5.90621198]
[1755210845054,5.78453565,191.76,191.71,5.90621198]
[1755210845257,3.50469141,191.76,191.72,6.44453565]
[1755210845559,3.50469141,191.77,191.73,6.44453565]
[1755210845756,3.50469141,191.77,191.74,0.66]
[1755210846130,3.50469141,191.77,191.72,5.78453565]
[1755210846333,3.50469141,191.77,191.71,5.24621198]
[1755210846334,5.78453565,191.74,191.71,0.03]
[1755210846634,3.50469141,191.73,191.71,0.03]
[1755210846834,3.50469141,191.72,191.71,0.03]
[1755210847456,3.50469141,191.73,191.71,0.03]
[1755210847666,3.50469141,191.72,191.71,0.03]
[1755210847864,3.50469141,191.73,191.71,0.03]
[1755210848535,3.50469141,191.73,191.72,0.66]
[1755210848736,3.50469141,191.76,191.72,6.44453565]
[1755210848936,37.88,191.76,191.73,0.66]
[1755210849540,37.88,191.76,191.74,0.66]
[1755210849752,37.88,191.76,191.71,0.03]
[1755210849963,9.29079201,191.75,191.71,0.03]
[1755210850143,9.98079201,191.75,191.71,0.03]
[1755210850555,5.78453565,191.73,191.71,0.03]
[1755210851368,3.50625636,191.74,191.71,0.69]
[1755210851660,37.88,191.74,191.71,0.69]
[1755210851834,5.78453565,191.72,191.71,0.03]
[1755210852035,3.5058172,191.72,191.71,0.03]
[1755210852238,5.78453565,191.72,191.71,0.03]
[1755210852465,3.5058172,191.73,191.71,0.03]
[1755210852666,5.78453565,191.77,191.71,6.47453565]
[1755210852872,41.38483325,191.76,191.72,0.66]
[1755210853073,3.50483325,191.75,191.72,0.66]
[1755210854265,3.50483325,191.75,191.72,5.8757861]
[1755210854872,37.88,191.76,191.72,5.8757861]
[1755210855177,3.50451499,191.75,191.72,5.8757861]
[1755210855577,37.88,191.76,191.72,5.8757861]
[1755210857854,131.9,191.79,191.73,6.44453565]
[1755210858060,41.38399959,191.78,191.73,5.78453565]
[1755210858280,3.50399959,191.77,191.74,0.66]
[1755210858577,37.88,191.78,191.74,0.66]
[1755210859150,3.50411987,191.77,191.74,0.66]
[1755210859363,37.88,191.78,191.74,0.66]
[1755210859961,37.88,191.78,191.75,5.21512385]
[1755210860586,38.57,191.78,191.75,5.21512385]
[1755210861688,37.88,191.78,191.75,5.21512385]
[1755210861862,9.97854306,191.77,191.72,5.21593991]
[1755210862184,0.69,191.76,191.72,5.21593991]
[1755210862488,3.50400741,191.77,191.73,0.66]
[1755210862695,3.50400741,191.77,191.74,0.66]
[1755210862910,3.50400741,191.77,191.72,11.00047556]
[1755210863077,43.66453565,191.78,191.73,0.66]
[1755210863397,44.35453565,191.78,191.73,0.66]
[1755210863705,5.78453565,191.77,191.73,0.66]
[1755210864300,37.88,191.78,191.74,5.87539584]
[1755210865396,0.06,191.8,191.75,0.66]
[1755210865911,0.06,191.8,191.76,6.44453565]
[1755210866306,0.06,191.8,191.74,18.25388546]
[1755210866307,0.06,191.8,191.77,5.87457996]
[1755210867402,0.06,191.8,191.78,0.66]
[1755210868400,0.06,191.8,191.77,10.99911561]
[1755210868582,0.06,191.8,191.77,11.65911561]
[1755210868792,0.06,191.8,191.77,5.87457996]
[1755210870395,5.78453565,191.78,191.73,0.66]
[1755210870590,37.86,191.79,191.74,0.66]
[1755210870907,44.32453565,191.79,191.74,0.66]
[1755210871712,43.64453565,191.79,191.74,0.66]
[1755210871911,0.68,191.78,191.74,0.66]
[1755210872512,43.64453565,191.79,191.75,5.87512385]
[1755210872884,43.64453565,191.79,191.76,0.66]
[1755210873185,37.86,191.79,191.75,5.21512385]
[1755210873489,38.54,191.79,191.75,11.6596595]
[1755210875112,6.46453565,191.78,191.72,11.00047556]
[1755210875414,6.46453565,191.77,191.72,5.21593991]
[1755210875711,6.46453565,191.77,191.72,5.87593991]
[1755210876700,0.68,191.77,191.72,11.00047556]
[1755210876892,0.68,191.77,191.73,0.66]
[1755210877101,0.68,191.76,191.72,11.66047556]
[1755210878013,0.68,191.76,191.72,5.87593991]
[1755210878192,0.68,191.76,191.72,11.66047556]
[1755210878388,4.18387186,191.78,191.72,11.66047556]
[1755210878621,9.96840751,191.78,191.73,0.66]
[1755210879033,4.18387186,191.78,191.73,6.44453565]
[1755210879335,4.18387186,191.78,191.74,6.44453565]
[1755210879698,3.50387186,191.78,191.74,5.78453565]
[1755210879890,37.84,191.79,191.75,6.44453565]
[1755210880123,37.9,191.8,191.76,6.44453565]
[1755210880504,38.58,191.8,191.76,11.6591863]
[1755210882217,38.58,191.8,191.76,5.87465065]
[1755210882393,0.74,191.8,191.76,5.87465065]
[1755210882594,0.74,191.8,191.76,11.6591863]
[1755210882595,0.06,191.8,191.76,11.6591863]
[1755210882792,0.06,191.8,191.76,10.9991863]
[1755210882994,0.06,191.8,191.77,0.66]
[1755210883194,0.06,191.8,191.76,5.21465065]
[1755210883425,0.06,191.8,191.77,6.44453565]
[1755210883791,0.06,191.8,191.78,0.66]
[1755210884216,0.06,191.8,191.79,5.21403618]
[1755210884841,0.06,191.8,191.78,5.21424471]
[1755210885142,0.74,191.8,191.75,6.44453565]
[1755210885709,0.06,191.8,191.76,11.65938754]
[1755210886136,0.06,191.8,191.76,5.87485189]
[1755210886830,5.78453565,191.79,191.74,5.21539584]
[1755210887137,0.68,191.78,191.74,5.87539584]
[1755210887439,5.78453565,191.79,191.74,5.87539584]
[1755210887734,0.68,191.78,191.74,5.87539584]
[1755210888033,9.96918912,191.77,191.72,5.87593991]
[1755210888223,5.78453565,191.77,191.72,5.87593991]
[1755210888528,9.96918912,191.77,191.72,11.00047556]
[1755210888706,3.50465347,191.78,191.73,6.44453565]
[1755210888909,3.50465347,191.78,191.74,0.66]
[1755210889135,4.18465347,191.78,191.74,0.66]
[1755210889933,6.46453565,191.77,191.72,5.87593991]
[1755210890108,9.96918912,191.77,191.72,11.66047556]
[1755210890307,6.46453565,191.77,191.72,11.66047556]
[1755210890508,9.96918912,191.77,191.72,11.66047556]
[1755210890738,6.46453565,191.77,191.72,11.66047556]
[1755210890949,9.96918912,191.77,191.72,11.66047556]
[1755210891117,6.46453565,191.77,191.73,5.87551431]
[1755210891319,3.50465347,191.77,191.74,0.66]
[1755210891914,9.28918912,191.78,191.74,0.66]
[1755210892229,3.50465347,191.77,191.74,0.66]
[1755210892533,3.50465347,191.77,191.74,5.87523859]
[1755210893248,3.50465347,191.77,191.75,0.66]
[1755210893536,3.50465347,191.78,191.75,0.66]
[1755210893735,3.50465347,191.77,191.75,5.87511966]
[1755210894043,3.50465347,191.78,191.75,5.87511966]
[1755210896123,5.78453565,191.77,191.75,0.66]
[1755210896324,5.78453565,191.77,191.74,5.21530523]
[1755210896519,9.29458865,191.77,191.74,5.87530523]
[1755210896841,0.68,191.76,191.73,5.21560747]
[1755210897339,5.78453565,191.74,191.71,0.03]
[1755210897540,5.78453565,191.73,191.71,0.03]
[1755210898440,6.46453565,191.74,191.71,0.03]
[1755210898824,0.68,191.74,191.71,0.03]
[1755210899031,6.46453565,191.74,191.71,0.03]
[1755210900542,5.78453565,191.72,191.71,0.03]
[1755210900748,9.29713334,191.72,191.71,0.03]
[1755210901046,9.99713334,191.72,191.71,0.03]
[1755210901835,25.10334891,191.72,191.71,0.03]
[1755210902239,30.31928882,191.72,191.71,0.03]
[1755210902750,30.31928882,191.72,191.69,0.03]
[1755210902751,64.68718329,191.72,191.69,0.03]
[1755210902951,20.89075122,191.7,191.69,0.03]
[1755210903139,24.40334891,191.7,191.69,0.03]
[1755210903342,9.99713334,191.7,191.69,0.03]
[1755210903547,44.30453565,191.7,191.69,0.03]
[1755210903858,47.81713334,191.7,191.69,0.03]
[1755210904549,68.13983299,191.7,191.69,0.03]
[1755210904945,68.13983299,191.7,191.67,0.03]
[1755210904946,15.10621557,191.69,191.67,0.03]
[1755210905142,20.89075122,191.66,191.65,0.03]
[1755210905450,20.89075122,191.66,191.59,0.03]
[1755210905451,41.10621557,191.64,191.59,0.03]
[1755210905650,41.10621557,191.64,191.56,0.03]
[1755210905651,41.10621557,191.6,191.56,0.03]
[1755210905827,15.10621557,191.56,191.51,0.03]
[1755210906027,62.22334891,191.55,191.51,0.03]
[1755210906254,15.10621557,191.54,191.51,0.03]
[1755210906453,11.00592245,191.52,191.51,0.03]
[1755210906670,63.93213802,191.52,191.51,0.03]
[1755210907033,59.41075122,191.52,191.51,0.03]
[1755210907444,64.63213802,191.52,191.51,0.03]
[1755210908343,52.81213802,191.52,191.51,0.03]
[1755210908541,58.71075122,191.52,191.51,0.03]
[1755210909151,88.71075122,191.52,191.51,0.03]
[1755210909534,89.41075122,191.52,191.51,0.03]
[1755210909731,94.63213802,191.52,191.51,0.03]
[1755210909937,15.10621557,191.51,191.47,0.03]
[1755210910246,58.71075122,191.5,191.47,0.03]
[1755210910446,70.41721898,191.5,191.47,0.03]
[1755210910654,100.41721898,191.5,191.47,0.03]
[1755210911244,94.63268333,191.5,191.47,0.03]
[1755210911956,88.73075122,191.5,191.47,0.03]
[1755210912538,94.65268333,191.5,191.47,0.03]
[1755210912739,58.73075122,191.5,191.47,0.03]
[1755210913158,63.95268333,191.5,191.47,0.03]
[1755210913463,58.73075122,191.5,191.47,0.03]
[1755210914055,63.95268333,191.5,191.47,0.03]
[1755210914637,58.73075122,191.5,191.47,0.03]
[1755210915862,88.73075122,191.5,191.47,0.03]
[1755210916657,26.0,191.54,191.49,0.75]
[1755210916966,37.84,191.53,191.49,6.53453565]
[1755210917140,37.84,191.53,191.49,0.03]
[1755210917346,37.84,191.53,191.5,0.72]
[1755210917664,5.78453565,191.54,191.51,0.72]
[1755210917963,37.84,191.53,191.52,0.72]
[1755210918444,37.84,191.54,191.52,0.72]
[1755210918860,37.84,191.54,191.52,6.50453565]
[1755210919044,37.84,191.56,191.53,0.72]
[1755210919353,15.10621557,191.57,191.54,0.72]
[1755210919551,37.84,191.56,191.53,5.78453565]
[1755210919773,37.84,191.56,191.51,5.94156042]
[1755210919944,43.62453565,191.56,191.52,0.72]
[1755210920466,37.84,191.56,191.53,0.72]
[1755210920767,37.84,191.56,191.54,0.72]
[1755210921072,37.84,191.56,191.51,5.22156042]
[1755210921073,37.84,191.56,191.55,0.72]
[1755210921967,37.84,191.56,191.55,11.72510469]
[1755210922164,37.84,191.58,191.55,11.72510469]
[1755210922361,37.84,191.58,191.56,0.72]
[1755210923170,37.84,191.58,191.54,5.22079476]
[1755210923370,37.84,191.58,191.55,0.72]
[1755210923549,37.84,191.58,191.54,11.00533041]
[1755210923753,37.84,191.58,191.56,0.72]
[1755210924675,6.48453565,191.57,191.51,5.78453565]
[1755210924870,37.84,191.56,191.51,5.78453565]
[1755210925047,43.62453565,191.56,191.51,5.78453565]
[1755210925576,44.32453565,191.56,191.51,0.72]
[1755210926351,38.54,191.56,191.51,5.94147474]
[1755210926668,44.32453565,191.56,191.51,5.94147474]
[1755210927960,5.78453565,191.53,191.49,5.25220481]
[1755210928157,37.84,191.53,191.5,0.72]
[1755210928480,15.10621557,191.59,191.52,5.78453565]
[1755210928773,37.84,191.63,191.58,5.78453565]
[1755210928980,37.84,191.63,191.6,5.78453565]
[1755210929146,37.84,191.63,191.6,0.72]
[1755210930075,37.84,191.63,191.61,5.21893429]
[1755210930578,0.06,191.62,191.6,5.93914033]
[1755210930879,6.52453565,191.62,191.57,0.71]
[1755210931966,6.52453565,191.62,191.57,5.92980759]
[1755210932776,0.06,191.62,191.57,11.71434324]
[1755210932978,30.06,191.62,191.58,0.71]
[1755210933667,30.06,191.62,191.57,11.00434324]
[1755210933869,30.74,191.62,191.57,11.00434324]
[1755210934070,30.06,191.62,191.57,11.00434324]
[1755210934268,0.68,191.61,191.57,11.00434324]
[1755210934780,37.82,191.6,191.57,5.21980759]
[1755210935084,0.68,191.59,191.55,5.22039633]
[1755210935263,37.82,191.6,191.56,6.49453565]
[1755210935764,30.06,191.62,191.59,5.78453565]
[1755210935966,67.88,191.62,191.6,6.49453565]
[1755210936161,30.0,191.61,191.59,5.78453565]
[1755210936360,30.0,191.61,191.6,6.49453565]
[1755210936572,37.88,191.62,191.6,6.49453565]
[1755210936789,0.06,191.62,191.6,6.49453565]
[1755210937161,0.06,191.62,191.6,0.71]
[1755210937365,0.06,191.62,191.58,6.49453565]
[1755210937562,0.06,191.62,191.59,0.71]
[1755210937774,0.06,191.62,191.6,0.71]
[1755210938175,0.06,191.62,191.61,5.21893429]
[1755210938883,0.06,191.62,191.61,11.71346994]
[1755210939391,0.06,191.62,191.61,5.21893429]
[1755210939583,0.06,191.62,191.6,5.21914124]
[1755210940264,0.06,191.62,191.6,11.71367689]
[1755210940860,0.06,191.62,191.6,5.92914124]
[1755210941086,0.06,191.62,191.6,11.71367689]
[1755210942075,0.06,191.62,191.6,5.21914124]
[1755210942467,0.06,191.62,191.59,5.21939953]
[1755210942468,6.52453565,191.62,191.59,5.21939953]
[1755210942702,0.06,191.62,191.6,0.71]
[1755210942997,0.06,191.62,191.61,0.71]
[1755210943196,0.06,191.62,191.59,11.00393518]
[1755210943410,0.06,191.62,191.6,6.49453565]
[1755210943892,0.06,191.62,191.59,5.21939953]
[1755210944194,0.74,191.62,191.59,5.21939953]
[1755210944597,0.74,191.62,191.58,5.21975153]
[1755210944776,43.58453565,191.61,191.58,5.21975153]
[1755210945367,0.68,191.6,191.55,5.78453565]
[1755210945570,9.27512218,191.6,191.55,0.71]
[1755210945793,6.46453565,191.59,191.54,5.22084159]
[1755210945974,37.8,191.58,191.54,5.22084159]
[1755210946170,37.8,191.58,191.55,0.71]
[1755210946370,43.58453565,191.58,191.54,5.22084159]
[1755210946597,43.58453565,191.58,191.54,5.93084159]
[1755210947094,6.46453565,191.57,191.53,5.22105468]
[1755210947798,0.68,191.57,191.53,5.22105468]
[1755210948186,0.68,191.57,191.53,5.93105468]
[1755210948599,5.78453565,191.57,191.53,5.22105468]
[1755210948891,9.95950133,191.57,191.52,31.22134572]
[1755210949109,43.58453565,191.58,191.53,0.71]
[1755210949270,43.58453565,191.58,191.52,37.00588137]
[1755210949471,43.58453565,191.58,191.54,0.71]
[1755210949996,43.58453565,191.58,191.52,37.00588137]
[1755210949997,3.49655506,191.57,191.52,37.71588137]
[1755210950292,9.96109071,191.57,191.52,31.93134572]
[1755210951092,37.8,191.58,191.54,5.78453565]
[1755210951303,37.8,191.58,191.55,0.71]
[1755210952276,37.8,191.58,191.53,5.78453565]
[1755210952277,0.68,191.57,191.53,5.78453565]
[1755210952596,0.68,191.57,191.52,37.00588137]
[1755210952801,4.17785857,191.57,191.52,37.00588137]
[1755210953109,37.8,191.58,191.53,6.49453565]
[1755210953511,37.8,191.58,191.54,0.71]
[1755210954087,37.8,191.58,191.55,5.22056904]
[1755210955620,43.58453565,191.58,191.55,5.22056904]
[1755210955795,0.68,191.57,191.53,5.22085]
[1755210956110,0.68,191.56,191.52,31.2213133]
[1755210956320,38.48,191.55,191.51,0.03]
[1755210956488,5.78453565,191.53,191.51,0.03]
[1755210956793,37.8,191.52,191.51,0.03]
[1755210958215,37.8,191.52,191.51,0.74]
[1755210958413,37.8,191.52,191.51,0.03]
[1755210958806,44.26453565,191.52,191.51,0.03]
[1755210958995,47.7696341,191.52,191.51,0.03]
[1755210959195,74.26453565,191.52,191.51,0.03]
[1755210959703,94.59213802,191.52,191.51,0.03]
[1755210960024,92.87653513,191.52,191.51,0.03]
[1755210960623,30.0,191.52,191.51,6.52453565]
[1755210961320,37.9181846,191.58,191.54,26.0]
[1755210961492,0.1181846,191.58,191.57,5.78453565]
[1755210961697,0.1181846,191.58,191.57,11.70455966]
[1755210962208,0.1181846,191.58,191.57,11.00455966]
[1755210962613,0.1181846,191.58,191.57,14.13870011]
[1755210963940,0.1181846,191.58,191.52,5.2213868]
[1755210964224,37.8,191.57,191.53,8.9186761]
[1755210964404,37.8,191.57,191.53,0.7]
[1755210964608,37.8,191.57,191.53,9.6186761]
[1755210964810,47.3786761,191.57,191.52,14.1400629]
[1755210964998,47.3786761,191.57,191.52,5.2213868]
[1755210965199,47.3786761,191.57,191.51,0.03]
[1755210965200,24.02489167,191.55,191.51,0.03]
[1755210965517,15.22440017,191.58,191.53,8.9186761]
[1755210965705,37.8,191.55,191.53,9.6186761]
[1755210966025,37.8,191.55,191.53,5.9209575]
[1755210966401,37.8,191.55,191.54,0.7]
[1755210966822,37.8,191.55,191.54,5.92084159]
[1755210967226,47.3786761,191.55,191.51,0.03]
[1755210967426,8.9186761,191.52,191.51,0.03]
[1755210967747,61.82489167,191.52,191.51,0.03]
[1755210967934,65.99316417,191.52,191.51,0.03]
[1755210968441,28.19316417,191.52,191.51,0.03]
[1755210968628,65.99316417,191.52,191.51,0.03]
[1755210968826,101.21455097,191.52,191.51,0.03]
[1755210969933,57.53316417,191.52,191.51,0.03]
[1755210970246,37.8,191.52,191.51,0.03]
[1755210970546,15.28440017,191.58,191.51,9.6486761]
[1755210970848,37.8,191.57,191.54,5.22084159]
[1755210971030,0.1781846,191.58,191.55,9.6186761]
[1755210971353,0.1781846,191.58,191.57,8.9186761]
[1755210971838,0.1781846,191.58,191.57,9.6186761]
[1755210972651,0.1781846,191.58,191.54,5.92084159]
[1755210972852,0.1781846,191.58,191.55,8.9186761]
[1755210973155,0.1781846,191.58,191.55,9.6186761]
[1755210973654,0.1781846,191.58,191.55,0.7]
[1755210973947,0.1781846,191.58,191.56,9.6186761]
[1755210974123,0.1781846,191.58,191.57,8.9186761]
[1755210974323,0.1781846,191.58,191.57,9.6186761]
[1755210974943,0.1781846,191.58,191.57,5.22002401]
[1755210975145,0.1781846,191.58,191.55,5.22030994]
[1755210975345,0.1781846,191.58,191.54,5.22082683]
[1755210975346,0.66,191.57,191.54,5.22082683]
[1755210975646,0.66,191.57,191.53,5.22104276]
[1755210975851,46.7186761,191.56,191.52,5.22132821]
[1755210976040,37.8,191.56,191.52,5.92132821]
[1755210976231,37.8,191.56,191.53,0.7]
[1755210976431,37.8,191.56,191.52,5.22132821]
[1755210976631,37.8,191.56,191.52,5.92132821]
[1755210978250,37.8,191.56,191.52,5.22132821]
[1755210978961,37.8,191.56,191.53,9.6186761]
[1755210979152,37.8,191.56,191.54,0.7]
[1755210979856,37.8,191.56,191.53,8.9186761]
[1755210980154,37.8,191.56,191.52,14.14000431]
[1755210980351,37.8,191.56,191.52,14.84000431]
[1755210980755,37.8,191.56,191.52,5.92132821]
[1755210980959,37.8,191.56,191.53,9.6186761]
[1755210981256,0.1781846,191.58,191.54,0.7]
[1755210981430,0.1781846,191.58,191.56,8.9186761]
[1755210981825,0.1781846,191.58,191.56,9.6186761]
[1755210982030,0.1781846,191.58,191.56,0.7]
[1755210982241,0.1781846,191.58,191.55,8.9186761]
[1755210982444,0.1781846,191.58,191.54,0.7]
[1755210982644,0.1781846,191.58,191.55,8.9186761]
[1755210982849,0.1781846,191.58,191.56,5.92029651]
[1755210984454,0.1781846,191.58,191.56,5.22029651]
[1755210985055,0.1781846,191.58,191.55,8.9186761]
[1755210985056,0.1781846,191.58,191.55,5.22056904]
[1755210985260,0.1781846,191.58,191.55,14.13924514]
[1755210985433,0.1781846,191.58,191.55,14.83924514]
[1755210986337,0.1781846,191.58,191.55,5.92056904]
[1755210986559,0.1781846,191.58,191.55,14.83924514]
[1755210987358,0.1781846,191.58,191.56,9.6186761]
[1755210987534,0.1781846,191.58,191.56,8.9186761]
[1755210987735,0.1781846,191.58,191.55,0.7]
[1755210988369,0.1781846,191.58,191.56,8.9186761]
[1755210988551,0.1781846,191.58,191.55,9.6186761]
[1755210989463,0.1781846,191.58,191.56,14.13897261]
[1755210989657,0.1781846,191.58,191.56,14.83897261]
[1755210990775,0.1781846,191.58,191.56,5.92029651]
[1755210992476,0.1781846,191.58,191.56,5.22029651]
[1755210993355,0.8981846,191.58,191.56,5.22029651]
[1755210993566,0.1781846,191.58,191.56,5.22029651]
[1755210994374,0.1781846,191.58,191.56,5.87029651]
[1755210994873,0.1781846,191.58,191.57,6.44869878]
[1755210995750,0.1781846,191.58,191.56,5.22029651]
[1755210996455,0.1781846,191.58,191.55,0.65]
[1755210997660,0.8981846,191.58,191.52,31.828699]
[1755210997875,0.72,191.57,191.52,26.68]
[1755210998179,3.68603773,191.58,191.54,5.79869878]
[1755210998383,0.1781846,191.58,191.55,5.79869878]
[1755210998581,0.8981846,191.58,191.53,5.22094621]
[1755210998770,0.72,191.57,191.53,11.01964499]
[1755210999486,41.26785313,191.56,191.52,0.03]
[1755210999675,37.76,191.56,191.55,5.79869878]
[1755210999882,37.76,191.56,191.55,6.44869878]
[1755211000077,0.1781846,191.58,191.55,0.65]
[1755211000281,0.72,191.57,191.53,11.01973976]
[1755211000661,3.68625113,191.58,191.54,5.79869878]
[1755211001082,3.68625113,191.58,191.55,0.65]
[1755211001300,10.02676531,191.57,191.52,0.03]
[1755211001464,10.02676531,191.57,191.52,11.050069]
[1755211001664,24.59116548,191.58,191.53,5.87093992]
[1755211001872,3.50806653,191.57,191.53,11.0196387]
[1755211002081,3.50806653,191.57,191.54,0.65]
[1755211002473,10.02676531,191.57,191.52,0.03]
[1755211002678,4.22806653,191.56,191.52,0.03]
[1755211002873,4.22806653,191.56,191.52,5.25128374]
[1755211003194,3.50806653,191.57,191.54,5.79869878]
[1755211003393,3.50806653,191.57,191.55,0.65]
[1755211003604,3.50806653,191.57,191.54,5.79869878]
[1755211003891,3.50806653,191.57,191.54,5.22084159]
[1755211004066,3.50806653,191.57,191.54,11.01954037]
[1755211004263,15.28440017,191.58,191.55,0.65]
[1755211004666,15.28440017,191.58,191.54,11.01954037]
[1755211004900,0.1781846,191.58,191.55,6.44869878]
[1755211005083,0.1781846,191.58,191.57,5.79869878]
[1755211005567,0.1781846,191.58,191.57,6.44869878]
[1755211005766,0.1781846,191.58,191.57,11.66872279]
[1755211008463,0.1781846,191.58,191.57,13.75918779]
[1755211011080,0.1781846,191.58,191.57,39.75918779]
[1755211012169,0.1781846,191.58,191.57,39.10918779]
[1755211012369,0.1781846,191.58,191.57,37.01872279]
[1755211012994,0.1781846,191.58,191.57,11.01872279]
[1755211013294,0.8981846,191.58,191.55,5.22036541]
[1755211013497,0.1781846,191.58,191.55,5.22036541]
[1755211013793,0.1781846,191.58,191.55,11.01906419]
[1755211014979,0.1781846,191.58,191.55,5.22036541]
[1755211015184,0.72,191.57,191.55,11.01906419]
[1755211015492,0.1781846,191.58,191.56,5.79869878]
[1755211016512,0.72,191.57,191.55,11.01906419]
[1755211016672,0.72,191.57,191.55,5.22036541]
[1755211017299,0.72,191.56,191.54,5.22075864]
[1755211017695,0.72,191.55,191.54,5.22075864]
[1755211018096,4.40996757,191.58,191.54,5.22075864]
[1755211018396,3.68996757,191.58,191.54,5.22075864]
[1755211018594,0.72,191.57,191.54,5.22075864]
[1755211019593,0.72,191.56,191.53,5.22106929]
[1755211020100,9.31048175,191.57,191.53,5.22106929]
[1755211020400,10.03048175,191.57,191.53,5.22106929]
[1755211020604,4.23178297,191.56,191.52,5.25136037]
[1755211020810,3.51178297,191.57,191.55,5.79869878]
[1755211021009,3.68996757,191.58,191.55,5.79869878]
[1755211021190,3.68996757,191.58,191.54,6.46869878]
[1755211021388,0.1781846,191.58,191.56,5.79869878]
[1755211021587,0.71,191.57,191.54,5.79869878]
[1755211021892,0.1781846,191.58,191.54,5.79869878]
[1755211022087,3.68996757,191.58,191.54,5.79869878]
[1755211022294,0.1781846,191.58,191.54,5.79869878]
[1755211022504,4.39996757,191.58,191.54,5.79869878]
[1755211022704,0.8881846,191.58,191.54,5.79869878]